Cogmind - Beta 15 @@@ ROGUE MODE // 2025.07.13 @ 04:14:03 Player: vilepis Result: Destroyed by 64-QL2(R) with Subdweller Machine Gun Performance ------------- Evolutions (0) 0 Regions Visited (2) 400 Robots Destroyed (12) 60 Value Destroyed (261) 261 Prototype IDs (2) 40 Alien Tech Used (0) 0 Bonus (-113) -113 TOTAL SCORE: 648 Bonus ------- Friendly Fire -113 Cogmind --------- Core Integrity 0/250 Matter 300/300 Energy 228/250 System Corruption 0% Temperature Cool (4) Movement Treading (160) Location -10/Subcaves Parts ------- > --- POWER (1) -------- Ion Engine > --- PROPULSION (2) --- Light Treads > --- UTILITY (2) ------ (None) > --- WEAPON (2) ------- Particle Gun Subdweller Laser > --- INVENTORY (5) ---- Light Treads Visual Processing Unit ECM Suite EM Pulse Gun Grenade Launcher Peak State ------------ > --- POWER ------------ Ion Engine > --- PROPULSION ------- Light Treads Light Treads > --- UTILITY ---------- Heat Sink Light Armor Plating > --- WEAPON ----------- Medium Laser Particle Gun > --- INVENTORY -------- Ion Engine Light Treads Visual Processing Unit ECM Suite EM Pulse Gun [Rating: 8] Favorites ----------- Power Ion Engine Engine Ion Engine Propulsion Light Treads Treads Light Treads Utility Heat Sink Device Heat Sink Storage Small Storage Unit Protection Light Armor Plating Weapon Medium Laser Energy Gun Medium Laser Ballistic Gun Light Assault Rifle Build | -11 -10 -10 ------- Run | Yrd Mat Sub Slots Evolved . | . . . Power . | . . . Propulsion . | . . . Utility . | . . . Weapon . | . . . Parts Attached 12 | 6 5 1 Power 2 | 1 1 . Engine 2 | 1 1 . Core . | . . . Reactor . | . . . Propulsion 2 | 2 . . Treads 2 | 2 . . Leg . | . . . Wheel . | . . . Hover . | . . . Flight . | . . . Utility 3 | 1 2 . Device 1 | . 1 . Storage 1 | 1 . . Processor . | . . . Hackware . | . . . Protection 1 | . 1 . Artifact . | . . . Weapon 5 | 2 2 1 Energy Gun 4 | 1 2 1 Energy Cannon . | . . . Ballistic Gun 1 | 1 . . Ballistic Cannon . | . . . Launcher . | . . . Special Weapon . | . . . Impact Weapon . | . . . Slashing Weapon . | . . . Piercing Weapon . | . . . Special Melee Weapon . | . . . Unidentified Prototypes . | . . . Parts Lost 3 | . . 3 Power . | . . . Propulsion 1 | . . 1 Utility 2 | . . 2 Weapon . | . . . Highest Loss Streak 2 | . . 2 To Critical Strikes . | . . . Average Backups 4 | 2 4 5 Power . | . . . Propulsion 1 | 1 1 1 Utility 1 | . 1 2 Weapon 1 | . 1 2 Tool/Special . | . . . Unused Backups 7 | . 3 4 Power . | . . . Propulsion 3 | . 2 1 Utility 2 | . . 2 Weapon 2 | . 1 1 Tool/Special . | . . . Average Slot Usage (%) 97 | . 97 96 Engine 14 | . 14 14 Treads 28 | . 28 28 Device 12 | . 12 14 Storage 1 | . 1 . Protection 11 | . 12 11 Energy Gun 20 | . 16 27 Ballistic Gun 6 | . 11 . Peak Build Rating 8 | 6 8 8 Average Rating 7 | 4 7 7 On Entrance 4 | . 6 8 Naked Turns . | . . . Heaviest Build 14 | 13 14 14 Greatest Support 40 | 40 40 40 Greatest Overweight (x) . | . . . Average Overweight (x) . | . . . Largest Inventory Capacity 8 | 8 8 5 Average Capacity 5 | 6 5 5 Most Carried 5 | 4 5 5 Average Carried 4 | 2 4 5 Final Capacity 8 | 8 5 5 Final Carried 5 | 4 5 5 Class Distribution -------------------- 100% | Mutant Dominant Class ---------------- Mutant | -10/Materials Mutant | -10/Subcaves Resources | -11 -10 -10 ----------- Run | Yrd Mat Sub Matter Collected 328 | 210 98 20 Remotely . | . . . Salvage Created 348 | . 204 144 Parts 32 | . 17 15 Haulers Intercepted . | . . . Recyclers Shooed . | . . . Parts Field Recycled . | . . . Retrieved Matter . | . . . Parts Self-Destructed 13 | . . 13 Prevented . | . . . Kills | -11 -10 -10 ------- Run | Yrd Mat Sub Combat Hostiles Destroyed 10 | . 6 4 Guns 10 | . 6 4 Classes Destroyed 5 | . 3 2 Watcher 1 | . 1 . Swarmer 5 | . 3 2 Grunt 3 | . 3 . Subdweller 2 | . . 2 Federalist 1 | . . 1 Best Kill Streak 3 | . 3 2 Combat Bots Only 3 | . 3 2 Max Kills in Single Turn 1 | . 1 1 Gunslinging . | . . . Exploded . | . . . Melee . | . . . Uniques/NPCs Destroyed . | . . . Combat | -11 -10 -10 -------- Run | Yrd Mat Sub Hostile Shots Fired 93 | . 28 65 Missed 38 | . 11 27 Hits 55 | . 17 38 Projectile 55 | . 17 38 Damage Taken 707 | . 232 475 Core 257 | . 70 187 Absorbed by Shields . | . . . Core Remaining (%) 100 | 100 . . Volleys Fired 50 | . 18 32 Largest 2 | . 2 2 Hottest 125 | . 70 125 Shots Fired 80 | . 36 44 Gun 80 | . 36 44 Cannon . | . . . Launcher . | . . . Special . | . . . Kinetic 18 | . 18 . Thermal 56 | . 12 44 Explosive . | . . . Electromagnetic 6 | . 6 . Robot Hit Streak 15 | . 15 5 Robot Miss Streak 3 | . 3 3 Penetration Max . | . . . Secondary Targets 2 | . 2 . Max Gunslinging Chain 1 | . 1 . Shots Hit Robots 53 | . 26 27 Core Hits 21 | . 12 9 Critical Kills . | . . . Critical Parts Destroyed . | . . . Critical Strikes 4 | . 1 3 Burn 4 | . 1 3 Melee Attacks . | . . . Impact . | . . . Slashing . | . . . Piercing . | . . . Sneak Attacks . | . . . Combat Hostiles . | . . . Follow-up Attacks . | . . . Damage Inflicted 823 | . 392 431 Guns 720 | . 289 431 Cannons . | . . . Explosions 103 | . 103 . Melee . | . . . Ramming . | . . . Kinetic 85 | . 85 . Thermal 671 | . 240 431 Explosive . | . . . Electromagnetic 67 | . 67 . Impact . | . . . Slashing . | . . . Piercing . | . . . Highest Corruption . | . . . Average Corruption . | . . . Corruption Purged . | . . . Corruption Blocked . | . . . Overload Shots . | . . . Overflow Damage 13 | . 13 . Projectiles . | . . . Explosions 13 | . 13 . Melee . | . . . Knockbacks . | . . . Impact . | . . . Kinetic . | . . . Secondary . | . . . Self-Inflicted Damage 35 | . 35 . Shots 1 | . 1 . Rammed . | . . . Targets Rammed . | . . . Kicked . | . . . Crushed . | . . . Highest Temperature 52 | . 52 4 Average Temperature 24 | . 26 2 Received Heat Transfer 189 | . 81 108 Siege Activations . | . . . Martial Activations . | . . . Shielding Activations . | . . . Robots Disrupted . | . . . Combat Hostiles . | . . . Robots Corrupted . | . . . Combat Hostiles . | . . . Parts Fried . | . . . Impact Corruptions . | . . . Robots Melted . | . . . Combat Hostiles . | . . . Parts Melted 1 | . . 1 Heat Transferred 1854 | . 631 1223 Parts Sabotaged . | . . . Parts Stolen . | . . . Parts Stripped . | . . . Power Chain Reactions 1 | . 1 . Alert | -11 -10 -10 ------- Run | Yrd Mat Sub Maximum Alert Level . | . . . Low Security (%) 100 | 100 100 . Level 1 . | . . . Level 2 . | . . . Level 3 . | . . . Level 4 . | . . . Level 5 . | . . . High Security . | . . . Max Security . | . . . Peak Influence 65 | . 65 . Initial . | . . . Average 12 | . 14 . Influence Increases 262 | . 177 85 Destroy 0b10 Robot/C 160 | . 120 40 Destroy 0b10 Robot/NC 5 | . 5 . Destroy Leader 22 | . 22 . Successful Hack 10 | . 10 . Destroy Structure 5 | . 5 . Lose Combat Pursuer 60 | . 15 45 Influence Decreases 262 | . 177 85 Time Decay 252 | . 177 75 Lost Part 10 | . . 10 Squads Dispatched . | . . . Investigation . | . . . Extermination . | . . . Reinforcement . | . . . Assault . | . . . Garrison . | . . . Intercept . | . . . Searches Triggered . | . . . Construction Impeded . | . . . Haulers Reinforced . | . . . Active Scanning Responses . | . . . Cargo Convoy Interrupts . | . . . Stealth | -11 -10 -10 --------- Run | Yrd Mat Sub Distress Signals . | . . . Communications Jammed . | . . . Distress Signals . | . . . Times Spotted 14 | . 7 7 Peak Tracking Total 4 | . 3 4 Tactical Retreats 3 | . 1 2 Traps | -11 -10 -10 ------- Run | Yrd Mat Sub Traps Triggered . | . . . Indirectly . | . . . Trap Hack Attempts . | . . . Triggered . | . . . Disarmed . | . . . Reprogrammed . | . . . Reused . | . . . Traps Extracted . | . . . Installed . | . . . Triggered . | . . . Machines | -11 -10 -10 ---------- Run | Yrd Mat Sub Machines Disabled . | . . . Max in Single Turn . | . . . Machines Repaired . | . . . Machines Dismantled . | . . . Machines Sabotaged . | . . . Overloaded Fab Kills . | . . . Hacking | -11 -10 -10 --------- Run | Yrd Mat Sub Machines Accessed 3 | . 3 . Terminals 3 | . 3 . Fabricators . | . . . Repair Stations . | . . . Recycling Units . | . . . Scanalyzers . | . . . Garrison Access . | . . . Total Hacks 4 | . 4 . Successful 3 | . 3 . Failed 1 | . 1 . Catastrophic . | . . . Database Lockouts . | . . . Manual . | . . . Terminals 4 | . 4 . Fabricators . | . . . Repair Stations . | . . . Recycling Units . | . . . Scanalyzers . | . . . Garrison Access . | . . . Terminal Hacks 3 | . 3 . Prototype ID Bank 1 | . 1 . Locate Traps 1 | . 1 . Hauler Manifests 1 | . 1 . Fabricator Hacks . | . . . Repair Station Hacks . | . . . Recycling Unit Hacks . | . . . Scanalyzer . | . . . Garrison Access Hacks . | . . . Unauthorized Hacks . | . . . Terminals . | . . . Fabricators . | . . . Repair Stations . | . . . Recycling Units . | . . . Scanalyzers . | . . . Garrison Access . | . . . Data Cores Recovered . | . . . Used . | . . . Hacking Detections 2 | . 2 . Full Trace Events . | . . . Feedback Events . | . . . Feedback Blocked . | . . . Robot Schematics Acquired . | . . . Robots Built . | . . . Authchips . | . . . Time . | . . . Total Robot Build Rating . | . . . Part Schematics Acquired . | . . . Parts Built . | . . . Authchips . | . . . Time . | . . . Total Part Build Rating . | . . . Parts Repaired . | . . . Time . | . . . Parts Recycled . | . . . Recycled Matter . | . . . Retrieved Matter . | . . . Retrieved Components . | . . . Parts Scanalyzed . | . . . Part Schematics Acquired . | . . . Parts Damaged . | . . . Bothacking | -11 -10 -10 ------------ Run | Yrd Mat Sub Used RIF Installer . | . . . Robots Hacked . | . . . Non-combat . | . . . Combat . | . . . Robot Hacks Applied . | . . . Relay Couplers Released . | . . . Fabnet Peak Effective % . | . . . Robots Rewired . | . . . Allies Hacked . | . . . Hacks Repelled . | . . . Allies | -11 -10 -10 -------- Run | Yrd Mat Sub Total Allies . | . . . Largest Group . | . . . Highest-Rated Group . | . . . Highest-Rated Ally . | . . . Total Orders . | . . . Ally Attacks . | . . . Total Damage . | . . . Kills . | . . . Allies Corrupted . | . . . Allies Melted . | . . . Intel | -11 -10 -10 ------- Run | Yrd Mat Sub Active Infowar (turns) . | . . . Robot Analysis Total . | . . . Derelict Logs Recovered . | . . . Drone Launches . | . . . Drone Recoveries . | . . . Exploration | -11 -10 -10 ------------- Run | Yrd Mat Sub Turns Passed 1168 | 77 668 423 Spaces Moved 608 | 43 363 202 Core 3 | 3 . . Treads 605 | 40 363 202 Legs . | . . . Wheels . | . . . Hover . | . . . Flight . | . . . Fastest Speed 50 | 50 160 160 Average Speed 159 | 152 160 160 Slowest Speed 160 | 160 160 160 Overloaded Moves . | . . . Propulsion Burnouts . | . . . Robots Hopped . | . . . Potential Cave-ins . | . . . Cave-ins Triggered . | . . . Exploration Rate (%) 28 | 4 63 18 Regions Visited 2 Branch Regions 1 Pre-discovered Areas . | . . . Known Exits Taken . | . . . Unknown Exits Taken 2 | 1 1 . Scrap Searched . | . . . Spaces Dug . | . . . Terrain Destroyed 4 | . 4 . Melee . | . . . Projectile . | . . . AOE 4 | . 4 . Terrain Rammed . | . . . Walls Destroyed . | . . . Machines Disabled . | . . . Actions | -11 -10 -10 --------- Run | Yrd Mat Sub Total 729 | 52 418 259 Wait 45 | . 22 23 Move 606 | 42 362 202 Hop . | . . . Pick Up 9 | 4 5 . Fast Attach 10 | 6 3 1 Attach . | . . . Detach . | . . . Swap 2 | . 2 . Drop 7 | . 6 1 Fire 50 | . 18 32 Melee . | . . . Ram . | . . . Kick . | . . . Crush . | . . . Escape Stasis . | . . . Rewire . | . . . Trap . | . . . Miscellaneous . | . . . Route ------- -11/Scrapyard -10/Materials (discovered 4 exits: [*Mat] / [*Min x2] / [*Sub]) -10/Subcaves History --------- Turn | Location | Event 12 | -11/Scrapyard | Discovered new exit (range 15) 78 | -11/Scrapyard | Entered Materials 79 | -10/Materials | Met a group of wandering Federalists 304 | -10/Materials | Build established: Mutant 309 | -10/Materials | Discovered new exit (range 5) 325 | -10/Materials | Discovered new exit (range 15) 658 | -10/Materials | Discovered new exit (range 7) 661 | -10/Materials | Discovered new exit (range 8) 746 | -10/Materials | Entered Subcaves 747 | -10/Subcaves | Continued accompanying wandering Federalists (2) 1005 | -10/Subcaves | Lost 3 allies 1063 | -10/Subcaves | Core integrity fell below 50% 1162 | -10/Subcaves | Core integrity fell below 20% 1169 | -10/Subcaves | Destroyed by 64-QL2(R) with Subdweller Machine Gun Last Messages --------------- repair. 00987_ Flight Unit fries itself beyond repair. 00989_ S-10 Pest destroyed. 00991_ Subatomizers dissect the Sub. Laser. 00991_ S-10 Pest destroyed. 00996_ Flight Unit fries itself beyond repair. 01077_ Lgt. Armor Plating destroyed. 01078_ KF-ULN(R) destroyed. 01090_ QP-13M(O) collects matter. 01097_ QP-13M(O) puts together Sub. Power Source. 01109_ Dropped Med. Laser. 01110_ Acquired Sub. Laser. 01156_ 1T-IX8(R) suffers critical hit (Burn). 01159_ 1T-IX8(R) suffers critical hit (Destroy). 01159_ 1T-IX8(R) destroyed. 01163_ QP-13M(O) collects matter. 01163_ Lgt. Treads destroyed. 01165_ Heat Sink destroyed. Map ----- +----------------------------------------------------+ | ?????????????????????????????????????????????????? | | ?????????????????????????????????????????????????? | | ?????????????????????????????????????????????????? | | ?????????????????????????????????????????????????? | | ?????????????????????????????????????????????????? | | ?????????????????????????????????????????????????? | | ?????????????????????????????????????????????????? | | ?????????????????????????????????????????????????? | | ?????????????????????????????????????????????????? | | ??? ??????????????????????????????????????????? | | ??? ????????????????????????????????????????? | | ??? ????????????????????????????????????????? | | ??? #????????????????????????????????????????? | | ??? ##???????????????????????????????????????? | | ???# ##??????????????????????????????????????? | | #??# ???????????????????????????????????????? | | ### ????????????????????????????????????????? | | ?????????????????????????????????????????? | | ?????????????????????####?????????????????? | | #???????????????????## ##????????????????? | | % #???##########?????? ### # ???????????? | | # ##### # #????## < < ?????????? | | ## * ##??## ! ?????????? | | ## # #### ????????? | | [ ### ????????? | | &%! ## ####?## @ #?????????????? | | = #### #?????# ### * ## #????????????? | | ### #??###?????## ## [OR ??????????? | | ??# #???????????# ? ##! ?????????? | | ? #???????????# ## ## #?? ## ?????????? | | ## #??????????###? #? #???##??????????????? | | ### ?????????? ##???????????????????? | | ##### ??????????? ? #????????????????????? | | ### ###?????????? ??? ^????????????????????? | | # ##???????????? ??? ????????????????????? | | ##????????????# ???? ^ ???????????????????? | | ##?????????????# ????#^ ???????????????????? | | #??????????????? ?????## "??????????????????? | | #####???????????????#????????#"??????????????????? | | #????????????????????????????????????????????????? | | #????????????????????????????????????????????????? | | #????????????????????????????????????????????????? | | #????????????????????????????????????????????????? | | #????????????????????????????????????????????????? | | ?????????????????????????????????????????????????? | | ?????????????????????????????????????????????????? | | ?????????????????????????????????????????????????? | | ?????????????????????????????????????????????????? | | ?????????????????????????????????????????????????? | | ?????????????????????????????????????????????????? | +----------------------------------------------------+ Best States ------------- Heat Dissipation 35 Energy Generation 10 Energy Capacity 250 Matter Stores 300 Matter Capacity 300 Sight Range 16 Terrain Scan Density 10 Armor Coverage 150 Evasion (%) 40 Recoil Reduction 2 Item Schematics ----------------- None Robot Schematics ------------------ None Fabricated ------------ Nothing Repaired ---------- Nothing Alien Tech Used ----------------- None Achievements -------------- None Challenges ------------ None Game ------ Seed MachineSmartbombThrower Manual? 0 Play Time 00:12:02 Cumulative 10.4 hours Start 2025.07.13 @ 04:02:24 End 2025.07.13 @ 04:14:03 Sessions 1 Manual Loads 0 Difficulty Rogue Special Mode None Game No. 24 Rogue 24 Adventurer 0 Explorer 0 Win Type - Total 0 Types 0/0/0/0/0/0/0/0/0/0 Lore% 7 Gallery% 14 Achievement% 16 Wizard Run 0 Options --------- Layout 2 ASCII 0 Keyboard 0 Movement Mouse Keybinds 1 Fullscreen 2 Font 32/Smallcaps Map View 50x44 Zoom Use 0% Tactical HUD 1 Map Filters NONE Filters NONE Steam 1 RUN: c007ef5f-491f-4a7e-b55e-e72c8dcbb82d